[Event "MČR juniorů a juniorek v rapid šachu 2024"]
[Site "Hotel Fit Fun, Harrachov, Czech Republic"]
[Date "2024.09.21"]
[Round "4.11"]
[White "Martinkovic Adam"]
[Black "Slaby Matej"]
[Result "0-1"]
[TimeControl "20+5"]
[WhiteFideId "23728019"]
[BlackFideId "23734876"]
[WhiteElo "1841"]
[BlackElo "1948"]

1. d4 {[%clk 00:20:07]} {[%emt 00:00:01]} Nf6 {[%clk 00:20:08]} {[%emt
00:00:03]} 2. Nf3 {[%clk 00:20:09]} {[%emt 00:00:03]} e6 {[%clk 00:20:05]}
{[%emt 00:00:07]} 3. c4 {[%clk 00:19:38]} {[%emt 00:00:36]} Bb4+ {[%clk
00:20:06]} {[%emt 00:00:04]} 4. Bd2 {[%clk 00:19:35]} {[%emt 00:00:09]} Qe7
{[%clk 00:20:03]} {[%emt 00:00:08]} 5. a3 {[%clk 00:19:18]} {[%emt 00:00:21]}
Bxd2+ {[%clk 00:20:00]} {[%emt 00:00:08]} 6. Nbxd2 {[%clk 00:19:21]} {[%emt
00:00:03]} b6 {[%clk 00:19:25]} {[%emt 00:00:41]} 7. g3 {[%clk 00:19:05]}
{[%emt 00:00:20]} Bb7 {[%clk 00:19:22]} {[%emt 00:00:08]} 8. Bg2 {[%clk
00:19:07]} {[%emt 00:00:03]} O-O {[%clk 00:19:11]} {[%emt 00:00:16]} 9. O-O
{[%clk 00:19:09]} {[%emt 00:00:03]} c5 {[%clk 00:19:13]} {[%emt 00:00:03]} 10.
e3 {[%clk 00:18:46]} {[%emt 00:00:28]} d6 {[%clk 00:19:03]} {[%emt 00:00:14]}
11. b4 {[%clk 00:18:00]} {[%emt 00:00:52]} Nbd7 {[%clk 00:18:24]} {[%emt
00:00:44]} 12. Rb1 {[%clk 00:17:11]} {[%emt 00:00:55]} Rfc8 {[%clk 00:17:37]}
{[%emt 00:00:52]} 13. Qe2 {[%clk 00:16:09]} {[%emt 00:01:07]} Rc7 {[%clk
00:16:32]} {[%emt 00:01:10]} 14. Rfd1 {[%clk 00:15:09]} {[%emt 00:01:04]} Ne4
{[%clk 00:16:00]} {[%emt 00:00:37]} 15. Nxe4 {[%clk 00:13:17]} {[%emt
00:01:57]} Bxe4 {[%clk 00:16:01]} {[%emt 00:00:03]} 16. Rb2 {[%clk 00:12:59]}
{[%emt 00:00:23]} cxb4 {[%clk 00:15:43]} {[%emt 00:00:24]} 17. axb4 {[%clk
00:12:44]} {[%emt 00:00:21]} Rac8 {[%clk 00:15:42]} {[%emt 00:00:05]} 18. Nd2
{[%clk 00:12:31]} {[%emt 00:00:18]} Bxg2 {[%clk 00:15:42]} {[%emt 00:00:05]} 19.
Kxg2 {[%clk 00:12:34]} {[%emt 00:00:02]} Nf6 {[%clk 00:13:41]} {[%emt
00:02:05]} 20. e4 {[%clk 00:10:37]} {[%emt 00:02:03]} e5 {[%clk 00:13:09]}
{[%emt 00:00:37]} 21. d5 {[%clk 00:10:08]} {[%emt 00:00:35]} a5 {[%clk
00:12:29]} {[%emt 00:00:45]} 22. bxa5 {[%clk 00:09:54]} {[%emt 00:00:19]} bxa5
{[%clk 00:12:32]} {[%emt 00:00:01]} 23. Ra1 {[%clk 00:09:53]} {[%emt 00:00:07]}
Ra7 {[%clk 00:12:30]} {[%emt 00:00:08]} 24. Rba2 {[%clk 00:09:42]} {[%emt
00:00:16]} Qc7 {[%clk 00:12:22]} {[%emt 00:00:12]} 25. Ra3 {[%clk 00:06:28]}
{[%emt 00:03:20]} g6 {[%clk 00:10:57]} {[%emt 00:01:30]} 26. Qf3 {[%clk
00:05:17]} {[%emt 00:01:16]} Kg7 {[%clk 00:10:48]} {[%emt 00:00:14]} 27. Qc3
{[%clk 00:04:48]} {[%emt 00:00:34]} Rca8 {[%clk 00:09:58]} {[%emt 00:00:55]} 28.
Ra4 {[%clk 00:04:22]} {[%emt 00:00:31]} Nd7 {[%clk 00:07:24]} {[%emt 00:02:39]}
29. Nb3 {[%clk 00:03:52]} {[%emt 00:00:35]} Nc5 {[%clk 00:06:38]} {[%emt
00:00:51]} 30. Nxc5 {[%clk 00:03:13]} {[%emt 00:00:45]} Qxc5 {[%clk 00:06:41]}
{[%emt 00:00:01]} 31. f4 {[%clk 00:02:29]} {[%emt 00:00:49]} f6 {[%clk
00:06:36]} {[%emt 00:00:10]} 32. Rb1 {[%clk 00:01:16]} {[%emt 00:01:18]} Qc7
{[%clk 00:06:22]} {[%emt 00:00:19]} 33. Rb5 {[%clk 00:00:56]} {[%emt 00:00:25]}
Rc8 {[%clk 00:05:18]} {[%emt 00:01:09]} 34. Rbxa5 {[%clk 00:00:30]} {[%emt
00:00:31]} Rxa5 {[%clk 00:05:21]} {[%emt 00:00:02]} 35. Qxa5 {[%clk 00:00:33]}
{[%emt 00:00:01]} Qxa5 {[%clk 00:05:16]} {[%emt 00:00:09]} 36. Rxa5 {[%clk
00:00:36]} {[%emt 00:00:04]} Rxc4 {[%clk 00:05:15]} {[%emt 00:00:06]} 37. fxe5
{[%clk 00:00:25]} {[%emt 00:00:17]} dxe5 {[%clk 00:04:58]} {[%emt 00:00:21]} 38.
Kf3 {[%clk 00:00:15]} {[%emt 00:00:15]} f5 {[%clk 00:04:43]} {[%emt 00:00:20]}
39. exf5 {[%clk 00:00:15]} {[%emt 00:00:05]} gxf5 {[%clk 00:04:47]} {[%emt
00:00:02]} 40. Ra7+ {[%clk 00:00:17]} {[%emt 00:00:02]} Kg6 {[%clk 00:04:20]}
{[%emt 00:00:30]} 41. d6 {[%clk 00:00:20]} {[%emt 00:00:03]} Rd4 {[%clk
00:04:19]} {[%emt 00:00:06]} 42. d7 {[%clk 00:00:19]} {[%emt 00:00:07]} h5
{[%clk 00:03:55]} {[%emt 00:00:27]} 43. h3 {[%clk 00:00:18]} {[%emt 00:00:07]}
Rd3+ {[%clk 00:03:46]} {[%emt 00:00:14]} 44. Kf2 {[%clk 00:00:20]} {[%emt
00:00:03]} Kf6 {[%clk 00:03:42]} {[%emt 00:00:09]} 45. Ke2 {[%clk 00:00:18]}
{[%emt 00:00:07]} e4 {[%clk 00:03:44]} {[%emt 00:00:03]} 46. g4 {[%clk
00:00:19]} {[%emt 00:00:04]} fxg4 {[%clk 00:03:41]} {[%emt 00:00:08]} 47. hxg4
{[%clk 00:00:23]} {[%emt 00:00:01]} hxg4 {[%clk 00:03:43]} {[%emt 00:00:03]} 48.
Kf2 {[%clk 00:00:19]} {[%emt 00:00:10]} Ke6 {[%clk 00:03:40]} {[%emt 00:00:07]}
49. Ra4 {[%clk 00:00:22]} {[%emt 00:00:03]} Kf5 {[%clk 00:03:31]} {[%emt
00:00:12]} 50. Ra7 {[%clk 00:00:24]} {[%emt 00:00:04]} g3+ {[%clk 00:03:30]}
{[%emt 00:00:06]} 51. Kf1 {[%clk 00:00:26]} {[%emt 00:00:03]} Kf4 {[%clk
00:03:33]} {[%emt 00:00:01]} 52. Ke2 {[%clk 00:00:18]} {[%emt 00:00:13]} g2
{[%clk 00:03:24]} {[%emt 00:00:15]} 53. d8=Q {[%clk 00:00:08]} {[%emt
00:00:15]} g1=N+ {[%clk 00:03:21]} {[%emt 00:00:07]} 54. Kf1 {[%clk 00:00:06]}
{[%emt 00:00:06]} Rxd8 {[%clk 00:03:22]} {[%emt 00:00:07]} 55. Kxg1 {[%clk
00:00:08]} {[%emt 00:00:02]} Ke3 {[%clk 00:03:25]} {[%emt 00:00:02]} 56. Ra3+
{[%clk 00:00:07]} {[%emt 00:00:06]} Ke2 {[%clk 00:03:26]} {[%emt 00:00:04]} 57.
Ra2+ {[%clk 00:00:11]} {[%emt 00:00:01]} Rd2 {[%clk 00:03:29]} {[%emt
00:00:02]} 58. Ra4 {[%clk 00:00:13]} {[%emt 00:00:01]} e3 {[%clk 00:03:33]}
{[%emt 00:00:03]} 59. Ra8 {[%clk 00:00:15]} {[%emt 00:00:02]} Ke1 {[%clk
00:02:13]} {[%emt 00:01:26]} 60. Ra1+ {[%clk 00:00:11]} {[%emt 00:00:09]} Rd1
{[%clk 00:02:13]} {[%emt 00:00:04]} 61. Ra2 {[%clk 00:00:14]} {[%emt 00:00:03]}
e2 {[%clk 00:02:03]} {[%emt 00:00:16]} 62. Kg2 {[%clk 00:00:16]} {[%emt
00:00:02]} Rc1 {[%clk 00:01:22]} {[%emt 00:00:45]} 63. Kf3 {[%clk 00:00:06]}
{[%emt 00:00:16]} Rc3+ {[%clk 00:01:26]} 64. Kg2 {[%clk 00:00:07]} {[%emt
00:00:04]} Kd1 {[%clk 00:01:27]} {[%emt 00:00:04]} 65. Ra1+ {[%clk 00:00:10]}
{[%emt 00:00:02]} Rc1 {[%clk 00:01:29]} {[%emt 00:00:03]} 66. Rxc1+ {[%clk
00:00:09]} {[%emt 00:00:05]} Kxc1 {[%clk 00:01:33]} {[%emt 00:00:02]} 67. Kf2
{[%clk 00:00:13]} Kd1 {[%clk 00:01:37]} {[%emt 00:00:02]} 0-1



[ePGN "0.1;DGT LiveChess/2.2.6"]

[Event "MČR juniorů a juniorek v rapid šachu 2024"]
[Site "Hotel Fit Fun, Harrachov, Czech Republic"]
[Date "2024.09.21"]
[Round "4.12"]
[White "Hozda Max"]
[Black "Stary Simon"]
[Result "1-0"]
[TimeControl "20+5"]
[WhiteFideId "23725958"]
[BlackFideId "23734353"]
[WhiteElo "1939"]
[BlackElo "1866"]

1. d4 {[%clk 00:20:07]} {[%emt 00:00:03]} Nf6 {[%clk 00:20:08]} 2. Nc3 {[%clk
00:20:06]} {[%emt 00:00:01]} d5 {[%clk 00:20:12]} {[%emt 00:00:06]} 3. Bf4
{[%clk 00:20:10]} {[%emt 00:00:02]} Bf5 {[%clk 00:20:13]} {[%emt 00:00:04]} 4.
e3 {[%clk 00:20:13]} {[%emt 00:00:01]} e6 {[%clk 00:20:12]} {[%emt 00:00:07]} 5.
Nf3 {[%clk 00:20:11]} {[%emt 00:00:06]} Nbd7 {[%clk 00:20:10]} {[%emt
00:00:07]} 6. Bd3 {[%clk 00:20:12]} {[%emt 00:00:04]} Bxd3 {[%clk 00:20:12]}
{[%emt 00:00:03]} 7. cxd3 {[%clk 00:20:16]} {[%emt 00:00:02]} c5 {[%clk
00:19:50]} {[%emt 00:00:27]} 8. dxc5 {[%clk 00:20:16]} {[%emt 00:00:04]} Bxc5
{[%clk 00:19:52]} {[%emt 00:00:02]} 9. d4 {[%clk 00:20:11]} {[%emt 00:00:10]}
Bb4 {[%clk 00:19:56]} {[%emt 00:00:02]} 10. Qb3 {[%clk 00:19:52]} {[%emt
00:00:24]} Bxc3+ {[%clk 00:19:49]} {[%emt 00:00:12]} 11. bxc3 {[%clk 00:19:05]}
{[%emt 00:00:52]} Qb6 {[%clk 00:19:32]} {[%emt 00:00:22]} 12. O-O {[%clk
00:18:29]} {[%emt 00:00:41]} O-O {[%clk 00:19:34]} {[%emt 00:00:04]} 13. c4
{[%clk 00:18:09]} {[%emt 00:00:25]} dxc4 {[%clk 00:17:39]} {[%emt 00:01:59]} 14.
Qxc4 {[%clk 00:18:10]} {[%emt 00:00:04]} Rac8 {[%clk 00:17:43]} {[%emt
00:00:01]} 15. Qa4 {[%clk 00:17:33]} {[%emt 00:00:43]} Qc6 {[%clk 00:16:32]}
{[%emt 00:01:16]} 16. Qa3 {[%clk 00:16:50]} {[%emt 00:00:47]} a6 {[%clk
00:15:16]} {[%emt 00:01:22]} 17. Rfc1 {[%clk 00:16:08]} {[%emt 00:00:46]} Qd5
{[%clk 00:14:54]} {[%emt 00:00:27]} 18. h3 {[%clk 00:14:51]} {[%emt 00:01:22]}
Rfd8 {[%clk 00:14:07]} {[%emt 00:00:52]} 19. Bc7 {[%clk 00:12:43]} {[%emt
00:02:13]} Re8 {[%clk 00:13:59]} {[%emt 00:00:13]} 20. Rab1 {[%clk 00:11:27]}
{[%emt 00:01:21]} Ne4 {[%clk 00:11:47]} {[%emt 00:02:17]} 21. Bf4 {[%clk
00:09:29]} {[%emt 00:02:03]} Nf8 {[%clk 00:10:07]} {[%emt 00:01:45]} 22. Rb3
{[%clk 00:06:27]} {[%emt 00:03:06]} Rxc1+ {[%clk 00:09:28]} {[%emt 00:00:45]}
23. Qxc1 {[%clk 00:06:30]} {[%emt 00:00:02]} Ng6 {[%clk 00:09:31]} {[%emt
00:00:02]} 24. Bh2 {[%clk 00:06:19]} {[%emt 00:00:15]} Qd7 {[%clk 00:09:01]}
{[%emt 00:00:36]} 25. Rb2 {[%clk 00:04:27]} {[%emt 00:01:57]} Rc8 {[%clk
00:09:00]} {[%emt 00:00:06]} 26. Rc2 {[%clk 00:04:30]} {[%emt 00:00:02]} Rxc2
{[%clk 00:08:56]} {[%emt 00:00:09]} 27. Qxc2 {[%clk 00:04:33]} {[%emt
00:00:02]} Nf6 {[%clk 00:08:25]} {[%emt 00:00:36]} 28. Nd2 {[%clk 00:04:02]}
{[%emt 00:00:36]} Ne7 {[%clk 00:08:05]} {[%emt 00:00:25]} 29. Nb3 {[%clk
00:03:50]} {[%emt 00:00:17]} Ned5 {[%clk 00:06:58]} {[%emt 00:01:13]} 30. a3
{[%clk 00:03:31]} {[%emt 00:00:24]} h6 {[%clk 00:06:22]} {[%emt 00:00:40]} 31.
e4 {[%clk 00:03:20]} {[%emt 00:00:16]} Ne7 {[%clk 00:06:08]} {[%emt 00:00:19]}
32. Be5 {[%clk 00:02:40]} {[%emt 00:00:45]} Nh7 {[%clk 00:05:02]} {[%emt
00:01:11]} 33. Qc7 {[%clk 00:02:00]} {[%emt 00:00:45]} Qxc7 {[%clk 00:04:57]}
{[%emt 00:00:11]} 34. Bxc7 {[%clk 00:02:03]} {[%emt 00:00:02]} Nf6 {[%clk
00:04:52]} {[%emt 00:00:10]} 35. f3 {[%clk 00:01:10]} {[%emt 00:00:59]} Nc6
{[%clk 00:04:42]} {[%emt 00:00:14]} 36. Kf2 {[%clk 00:01:08]} {[%emt 00:00:07]}
Ne8 {[%clk 00:03:09]} {[%emt 00:01:39]} 37. Bg3 {[%clk 00:00:42]} {[%emt
00:00:30]} b6 {[%clk 00:01:50]} {[%emt 00:01:25]} 38. d5 {[%clk 00:00:30]}
{[%emt 00:00:16]} exd5 {[%clk 00:01:52]} {[%emt 00:00:03]} 39. exd5 {[%clk
00:00:33]} {[%emt 00:00:02]} Nd8 {[%clk 00:01:02]} {[%emt 00:00:55]} 40. d6
{[%clk 00:00:14]} {[%emt 00:00:24]} f5 {[%clk 00:00:49]} {[%emt 00:00:18]} 41.
d7 {[%clk 00:00:11]} {[%emt 00:00:08]} Nf6 {[%clk 00:00:53]} 42. Bc7 {[%clk
00:00:14]} {[%emt 00:00:02]} Nxd7 {[%clk 00:00:36]} {[%emt 00:00:22]} 43. Bxd8
{[%clk 00:00:17]} {[%emt 00:00:02]} Kf7 {[%clk 00:00:39]} {[%emt 00:00:02]} 44.
Ke3 {[%clk 00:00:19]} {[%emt 00:00:03]} b5 {[%clk 00:00:15]} {[%emt 00:00:30]}
45. Kd4 {[%clk 00:00:19]} {[%emt 00:00:04]} Ke6 {[%clk 00:00:16]} {[%emt
00:00:03]} 46. Nc5+ {[%clk 00:00:20]} {[%emt 00:00:05]} Nxc5 {[%clk 00:00:14]}
{[%emt 00:00:08]} 47. Kxc5 {[%clk 00:00:23]} {[%emt 00:00:02]} Kd7 {[%clk
00:00:17]} {[%emt 00:00:02]} 48. Ba5 {[%clk 00:00:13]} {[%emt 00:00:15]} 1-0



[ePGN "0.1;DGT LiveChess/2.2.6"]

[Event "MČR juniorů a juniorek v rapid šachu 2024"]
[Site "Hotel Fit Fun, Harrachov, Czech Republic"]
[Date "2024.09.21"]
[Round "4.13"]
[White "Stastna Martina"]
[Black "Rybackova Lucie"]
[Result "0-1"]
[TimeControl "20+5"]
[WhiteFideId "385123"]
[BlackFideId "23739207"]
[WhiteElo "1801"]
[BlackElo "1933"]

1. e4 {[%clk 00:20:08]} {[%emt 00:00:01]} c6 {[%clk 00:20:08]} {[%emt
00:00:02]} 2. d4 {[%clk 00:20:04]} {[%emt 00:00:10]} d5 {[%clk 00:20:12]}
{[%emt 00:00:02]} 3. exd5 {[%clk 00:20:02]} {[%emt 00:00:07]} cxd5 {[%clk
00:20:16]} {[%emt 00:00:02]} 4. Bd3 {[%clk 00:20:01]} {[%emt 00:00:05]} Nc6
{[%clk 00:20:16]} {[%emt 00:00:05]} 5. c3 {[%clk 00:20:01]} {[%emt 00:00:04]}
g6 {[%clk 00:20:17]} {[%emt 00:00:05]} 6. Nf3 {[%clk 00:19:33]} {[%emt
00:00:33]} Bg7 {[%clk 00:20:14]} {[%emt 00:00:07]} 7. Nbd2 {[%clk 00:19:34]}
{[%emt 00:00:05]} Nf6 {[%clk 00:20:13]} {[%emt 00:00:06]} 8. h3 {[%clk
00:19:04]} {[%emt 00:00:34]} O-O {[%clk 00:20:14]} {[%emt 00:00:05]} 9. O-O
{[%clk 00:19:07]} {[%emt 00:00:02]} Bf5 {[%clk 00:20:15]} {[%emt 00:00:05]} 10.
Bxf5 {[%clk 00:17:24]} {[%emt 00:01:48]} gxf5 {[%clk 00:20:18]} {[%emt
00:00:02]} 11. Ne5 {[%clk 00:16:47]} {[%emt 00:00:41]} e6 {[%clk 00:16:17]}
{[%emt 00:04:06]} 12. Ndf3 {[%clk 00:15:47]} {[%emt 00:01:05]} Ne4 {[%clk
00:15:34]} {[%emt 00:00:48]} 13. Bf4 {[%clk 00:15:03]} {[%emt 00:00:49]} Ne7
{[%clk 00:13:05]} {[%emt 00:02:35]} 14. Qc1 {[%clk 00:12:55]} {[%emt 00:02:13]}
f6 {[%clk 00:12:23]} {[%emt 00:00:47]} 15. Nd3 {[%clk 00:12:52]} {[%emt
00:00:08]} Kh8 {[%clk 00:12:00]} {[%emt 00:00:28]} 16. Nd2 {[%clk 00:11:38]}
{[%emt 00:01:18]} Ng6 {[%clk 00:11:32]} {[%emt 00:00:33]} 17. Nxe4 {[%clk
00:09:46]} {[%emt 00:01:57]} fxe4 {[%clk 00:10:39]} {[%emt 00:00:59]} 18. Nc5
{[%clk 00:09:34]} {[%emt 00:00:17]} Qe7 {[%clk 00:10:15]} {[%emt 00:00:29]} 19.
f3 {[%clk 00:09:12]} {[%emt 00:00:27]} b6 {[%clk 00:09:37]} {[%emt 00:00:42]}
20. Nb3 {[%clk 00:09:11]} {[%emt 00:00:07]} Rg8 {[%clk 00:07:26]} {[%emt
00:02:16]} 21. fxe4 {[%clk 00:06:41]} {[%emt 00:02:36]} dxe4 {[%clk 00:07:29]}
{[%emt 00:00:01]} 22. Qe3 {[%clk 00:06:44]} {[%emt 00:00:01]} f5 {[%clk
00:07:17]} {[%emt 00:00:17]} 23. Kh1 {[%clk 00:06:06]} {[%emt 00:00:43]} Bf6
{[%clk 00:06:10]} {[%emt 00:01:13]} 24. Nd2 {[%clk 00:05:19]} {[%emt 00:00:52]}
Nxf4 {[%clk 00:04:41]} {[%emt 00:01:34]} 25. Qxf4 {[%clk 00:05:22]} {[%emt
00:00:02]} Qg7 {[%clk 00:04:44]} {[%emt 00:00:02]} 26. Qh2 {[%clk 00:04:18]}
{[%emt 00:01:09]} Bg5 {[%clk 00:04:23]} {[%emt 00:00:27]} 27. Nc4 {[%clk
00:04:10]} {[%emt 00:00:12]} Raf8 {[%clk 00:03:38]} {[%emt 00:00:50]} 28. Rae1
{[%clk 00:04:00]} {[%emt 00:00:15]} Bh4 {[%clk 00:03:32]} {[%emt 00:00:11]} 29.
Re2 {[%clk 00:04:04]} {[%emt 00:00:02]} Bg3 {[%clk 00:03:36]} 30. Qg1 {[%clk
00:04:07]} {[%emt 00:00:01]} Qg6 {[%clk 00:03:25]} {[%emt 00:00:16]} 31. Ne5
{[%clk 00:03:26]} {[%emt 00:00:46]} Bxe5 {[%clk 00:03:19]} {[%emt 00:00:12]} 32.
dxe5 {[%clk 00:03:30]} {[%emt 00:00:01]} f4 {[%clk 00:03:12]} {[%emt 00:00:11]}
33. Qd4 {[%clk 00:02:00]} {[%emt 00:01:35]} f3 {[%clk 00:03:08]} {[%emt
00:00:09]} 34. gxf3 {[%clk 00:01:41]} {[%emt 00:00:25]} exf3 {[%clk 00:03:12]}
{[%emt 00:00:01]} 35. Rg1 {[%clk 00:00:54]} {[%emt 00:00:52]} Qxg1+ {[%clk
00:03:10]} {[%emt 00:00:07]} 36. Qxg1 {[%clk 00:00:56]} {[%emt 00:00:02]} Rxg1+
{[%clk 00:03:12]} {[%emt 00:00:02]} 0-1



[ePGN "0.1;DGT LiveChess/2.2.6"]

[Event "MČR juniorů a juniorek v rapid šachu 2024"]
[Site "Hotel Fit Fun, Harrachov, Czech Republic"]
[Date "2024.09.21"]
[Round "4.14"]
[White "Vyslysel Petr"]
[Black "Sichrovsky Tomas"]
[Result "0-1"]
[TimeControl "20+5"]
[WhiteFideId "23730277"]
[BlackFideId "23704730"]
[WhiteElo "1678"]
[BlackElo "1928"]

1. d4 {[%clk 00:20:05]} {[%emt 01:24:34]} Nf6 {[%clk 00:20:09]} {[%emt
00:00:05]} 2. c4 {[%clk 00:20:13]} {[%emt 00:00:02]} c5 {[%clk 00:20:13]} 3. d5
{[%clk 00:20:12]} {[%emt 00:00:06]} b5 {[%clk 00:20:17]} {[%emt 00:00:01]} 4.
cxb5 {[%clk 00:20:15]} {[%emt 00:00:03]} a6 {[%clk 00:20:21]} 5. e3 {[%clk
00:20:19]} {[%emt 00:00:01]} g6 {[%clk 00:20:26]} {[%emt 00:00:01]} 6. bxa6
{[%clk 00:20:21]} {[%emt 00:00:03]} Bg7 {[%clk 00:20:30]} {[%emt 00:00:02]} 7.
Nc3 {[%emt 00:00:02]} O-O {[%clk 00:20:31]} {[%emt 00:00:02]} 8. Nf3 {[%clk
00:20:04]} {[%emt 00:00:25]} Qa5 {[%clk 00:20:36]} {[%emt 00:00:01]} 9. Bd2
{[%clk 00:19:44]} {[%emt 00:00:25]} Bxa6 {[%clk 00:20:39]} {[%emt 00:00:02]} 10.
Bxa6 {[%clk 00:19:43]} {[%emt 00:00:06]} Qxa6 {[%clk 00:20:43]} {[%emt
00:00:01]} 11. Qe2 {[%clk 00:19:38]} {[%emt 00:00:09]} d6 {[%clk 00:20:48]}
{[%emt 00:00:01]} 12. Qxa6 {[%clk 00:19:24]} {[%emt 00:00:20]} Nxa6 {[%clk
00:20:52]} 13. O-O {[%clk 00:19:17]} {[%emt 00:00:11]} Rfb8 {[%clk 00:20:56]}
{[%emt 00:00:01]} 14. Rfb1 {[%clk 00:19:16]} {[%emt 00:00:06]} Nb4 {[%clk
00:21:00]} 15. Ne1 {[%clk 00:18:00]} {[%emt 00:01:21]} Nfxd5 {[%clk 00:21:01]}
{[%emt 00:00:04]} 16. a3 {[%clk 00:17:09]} {[%emt 00:00:56]} Nxc3 {[%clk
00:21:01]} {[%emt 00:00:05]} 17. Bxc3 {[%clk 00:16:34]} {[%emt 00:00:40]} Bxc3
{[%clk 00:20:40]} {[%emt 00:00:27]} 18. bxc3 {[%clk 00:14:51]} {[%emt
00:01:47]} Nc6 {[%clk 00:20:44]} 19. Kf1 {[%clk 00:13:22]} {[%emt 00:01:35]}
Rxb1 20. Rxb1 {[%clk 00:13:25]} Rxa3 {[%clk 00:20:48]} {[%emt 00:00:01]} 21.
Rb7 {[%clk 00:13:29]} Kf8 {[%clk 00:20:29]} {[%emt 00:00:25]} 22. c4 {[%clk
00:13:10]} {[%emt 00:00:24]} Rc3 {[%clk 00:20:32]} {[%emt 00:00:02]} 23. Rc7
{[%clk 00:13:13]} {[%emt 00:00:02]} Ne5 {[%clk 00:20:36]} {[%emt 00:00:01]} 24.
Rc8+ {[%clk 00:13:15]} {[%emt 00:00:03]} Kg7 {[%clk 00:20:40]} 25. Ke2 {[%clk
00:12:58]} {[%emt 00:00:22]} Rxc4 {[%clk 00:20:27]} {[%emt 00:00:19]} 26. f4
{[%clk 00:12:51]} {[%emt 00:00:11]} Ng4 {[%clk 00:20:27]} {[%emt 00:00:05]} 27.
h3 {[%clk 00:12:53]} {[%emt 00:00:03]} Nf6 {[%clk 00:20:30]} {[%emt 00:00:01]}
28. Kd3 {[%clk 00:12:39]} {[%emt 00:00:19]} Ra4 {[%clk 00:20:31]} {[%emt
00:00:04]} 29. Rc7 {[%clk 00:12:00]} {[%emt 00:00:45]} Nd5 {[%clk 00:20:35]}
{[%emt 00:00:01]} 30. Rd7 {[%clk 00:11:56]} {[%emt 00:00:09]} Ra3+ {[%clk
00:20:32]} {[%emt 00:00:09]} 31. Kd2 {[%clk 00:11:55]} {[%emt 00:00:05]} Rxe3
{[%clk 00:20:13]} {[%emt 00:00:24]} 32. Nf3 {[%clk 00:11:56]} {[%emt 00:00:04]}
Re4 {[%clk 00:20:09]} {[%emt 00:00:10]} 0-1



[ePGN "0.1;DGT LiveChess/2.2.6"]

[Event "MČR juniorů a juniorek v rapid šachu 2024"]
[Site "Hotel Fit Fun, Harrachov, Czech Republic"]
[Date "2024.09.21"]
[Round "4.15"]
[White "Stejskal Michal"]
[Black "Housa Vojtech"]
[Result "0-1"]
[TimeControl "20+5"]
[WhiteFideId "398195"]
[BlackFideId "23736364"]
[WhiteElo "1926"]
[BlackElo "1691"]

1. d4 {[%clk 00:20:07]} {[%emt 00:00:02]} Nf6 {[%clk 00:20:09]} {[%emt
00:00:03]} 2. Nf3 {[%clk 00:20:10]} g6 {[%clk 00:20:13]} {[%emt 00:00:01]} 3.
Nbd2 {[%clk 00:20:10]} {[%emt 00:00:05]} Bg7 {[%clk 00:20:16]} 4. e4 {[%clk
00:20:13]} {[%emt 00:00:02]} d6 {[%clk 00:20:20]} {[%emt 00:00:02]} 5. Bd3
{[%clk 00:20:16]} {[%emt 00:00:02]} O-O {[%clk 00:20:22]} {[%emt 00:00:03]} 6.
c3 {[%clk 00:20:19]} {[%emt 00:00:02]} Nfd7 {[%clk 00:20:22]} {[%emt 00:00:05]}
7. O-O {[%clk 00:20:11]} {[%emt 00:00:13]} e5 {[%clk 00:20:24]} {[%emt
00:00:04]} 8. d5 {[%clk 00:20:14]} {[%emt 00:00:02]} f5 {[%clk 00:20:25]}
{[%emt 00:00:04]} 9. Re1 {[%clk 00:20:12]} {[%emt 00:00:07]} Nf6 {[%clk
00:20:26]} {[%emt 00:00:04]} 10. c4 {[%clk 00:20:07]} {[%emt 00:00:09]} f4
{[%clk 00:20:16]} {[%emt 00:00:15]} 11. b4 {[%clk 00:19:47]} {[%emt 00:00:25]}
h6 {[%clk 00:19:48]} {[%emt 00:00:32]} 12. c5 {[%clk 00:19:43]} {[%emt
00:00:09]} g5 {[%clk 00:19:50]} {[%emt 00:00:04]} 13. Nc4 {[%clk 00:19:39]}
{[%emt 00:00:09]} g4 {[%clk 00:19:24]} {[%emt 00:00:31]} 14. Nfd2 {[%clk
00:19:42]} {[%emt 00:00:02]} g3 {[%clk 00:18:34]} {[%emt 00:00:56]} 15. hxg3
{[%clk 00:19:08]} {[%emt 00:00:37]} fxg3 {[%clk 00:18:23]} {[%emt 00:00:16]} 16.
f3 {[%clk 00:19:12]} {[%emt 00:00:01]} Ng4 17. fxg4 {[%clk 00:17:25]} Qh4
{[%clk 00:13:51]} {[%emt 00:00:03]} 18. Nf3 {[%clk 00:17:28]} Rxf3 {[%clk
00:13:18]} {[%emt 00:00:41]} 19. Qxf3 {[%emt 00:00:04]} Bxg4 {[%clk 00:13:21]}
20. Qe3 {[%clk 00:17:34]} {[%emt 00:00:01]} Nd7 {[%clk 00:12:43]} {[%emt
00:00:43]} 21. Nd2 {[%clk 00:17:01]} {[%emt 00:00:38]} Qh2+ {[%clk 00:10:35]}
{[%emt 00:02:13]} 22. Kf1 {[%clk 00:17:04]} {[%emt 00:00:03]} Rf8+ {[%clk
00:10:20]} {[%emt 00:00:20]} 23. Nf3 {[%clk 00:16:03]} {[%emt 00:01:06]} Rxf3+
{[%clk 00:07:01]} {[%emt 00:03:24]} 24. Qxf3 {[%clk 00:14:49]} {[%emt
00:01:19]} Bxf3 {[%clk 00:07:00]} {[%emt 00:00:06]} 0-1



[ePGN "0.1;DGT LiveChess/2.2.6"]